fUST/lending_fUST_20250722
["ID","MTS","AMOUNT","RATE_DAILY","PERIOD"]
[374078521,1753195850149,-260.0,0.00018712,2]
[374078523,1753195850159,-1000.0,0.00018716,2]
[374078525,1753195850169,-1633.52768393,0.00018762,2]
[374078528,1753195850178,-642.45,0.00018783,2]
[374078530,1753195850189,-1167.03,0.00018784,2]
[374078532,1753195850198,-460.0,0.00018784,2]
[374078534,1753195850207,-758.16,0.00018784,2]
[374078536,1753195850217,-460.0,0.00018784,2]
[374078538,1753195850229,-572.12,0.00018784,2]
[374078540,1753195850238,-460.0,0.00018784,2]
[374078542,1753195850247,-460.0,0.00018784,2]
[374078544,1753195850256,-479.85,0.00018784,2]
[374078546,1753195850266,-460.0,0.00018784,2]
[374078548,1753195850275,-460.0,0.00018785,2]
[374078550,1753195850284,-647.2,0.00018785,2]
[374078552,1753195850294,-460.0,0.00018785,2]
[374078554,1753195850303,-460.0,0.00018785,2]
[374078556,1753195850313,-331.82757342,0.00018785,2]
[374078558,1753195850322,-460.0,0.00018785,2]
[374078560,1753195850332,-460.0,0.00018785,2]
[374078562,1753195850341,-460.0,0.00018785,2]
[374078564,1753195850350,-460.0,0.00018785,2]
[374078566,1753195850359,-438.74,0.00018785,2]
[374078568,1753195850369,-460.0,0.00018785,2]
[374078570,1753195850378,-460.0,0.00018785,2]
[374078572,1753195850388,-460.0,0.00018785,2]
[374078574,1753195850398,-460.0,0.00018785,2]
[374078576,1753195850408,-689.82,0.00018785,2]
[374078578,1753195850417,-460.0,0.00018785,2]
[374078580,1753195850426,-1283.61,0.00018785,2]
[374078582,1753195850434,-460.0,0.00018785,2]
[374078584,1753195850444,-460.0,0.00018785,2]
[374078586,1753195850453,-460.0,0.00018785,2]
[374078588,1753195850462,-460.0,0.00018786,2]
[374078590,1753195850471,-460.0,0.00018786,2]
[374078592,1753195850479,-469.86368413,0.00018786,2]
[374078594,1753195850488,-151.0,0.00018786,2]
[374078596,1753195850497,-151.0,0.00018786,2]
[374078598,1753195850506,-460.0,0.00018786,2]
[374078600,1753195850516,-460.0,0.00018786,2]
[374078601,1753195850525,-460.0,0.00018786,2]
[374078602,1753195850534,-460.0,0.00018786,2]
[374078603,1753195850543,-460.0,0.00018786,2]
[374078604,1753195850552,-460.0,0.00018786,2]
[374078605,1753195850561,-460.0,0.00018786,2]
[374078606,1753195850570,-460.0,0.00018786,2]
[374078607,1753195850579,-460.0,0.00018786,2]
[374078608,1753195850589,-500.13,0.00018786,2]
[374078609,1753195850598,-460.0,0.00018786,2]
[374078610,1753195850607,-460.0,0.00018786,2]
[374078611,1753195850616,-5181.15,0.00018789,2]
[374078612,1753195850625,-460.0,0.00018789,2]
[374078613,1753195850634,-751.42,0.00018789,2]
[374078615,1753195850644,-151.0,0.000188,2]
[374078617,1753195850653,-460.0,0.00018812,2]
[374078619,1753195850663,-1110.86,0.00018812,2]
[374078621,1753195850672,-460.0,0.00018812,2]
[374078623,1753195850681,-810.51,0.00018813,2]
[374078625,1753195850690,-460.0,0.00018813,2]
[374078627,1753195850699,-1118.89,0.00018813,2]
[374078629,1753195850710,-788.4,0.00018813,2]
[374078631,1753195850718,-268.312637,0.00018815,2]
[374078633,1753195850728,-526.23456936,0.000189,2]
[374078635,1753195850736,-302.96970909,0.000189,2]
[374078637,1753195850746,-25000.0,0.00018941,2]
[374078639,1753195850755,-151.0,0.00018941,2]
[374078641,1753195850765,-1375.39190922,0.00018951,2]
[374078643,1753195850774,-1503.5032217,0.00018951,2]
[374078645,1753195850783,-173.313019,0.00018996,2]
[374078649,1753195850870,-1330.93779917,0.00019,5]
[374078650,1753195850881,-18000.0,0.00019,2]
[374078651,1753195850891,-151.0,0.00019,2]
[374078652,1753195850900,-1917.794687,0.00019,2]
[374078653,1753195850910,-1917.794687,0.00019,2]
[374078654,1753195850920,-264.110165,0.00019,2]
[374078655,1753195850930,-151.0,0.00019,2]
[374078656,1753195850940,-264.110165,0.00019,2]
[374078657,1753195850949,-642.45,0.00019057,2]
[374078658,1753195850959,-1167.03,0.00019058,2]
[374078659,1753195850969,-460.0,0.00019058,2]
[374078660,1753195850978,-758.16,0.00019058,2]
[374078661,1753195850987,-423.20922546,0.00019058,2]
[374078662,1753195850997,-572.12,0.00019058,2]
[374078663,1753195851006,-460.0,0.00019058,2]
[374078664,1753195851016,-460.0,0.00019058,2]
[374078665,1753195851026,-479.85,0.00019058,2]
[374078666,1753195851036,-460.0,0.00019058,2]
[374078667,1753195851045,-647.2,0.00019059,2]
[374078668,1753195851055,-460.0,0.00019059,2]
[374078669,1753195851064,-460.0,0.00019059,2]
[374078670,1753195851074,-460.0,0.00019059,2]
[374078671,1753195851083,-460.0,0.00019059,2]
[374078672,1753195851093,-588.03,0.00019059,2]
[374078673,1753195851103,-460.0,0.00019059,2]
[374078674,1753195851113,-460.0,0.00019059,2]
[374078675,1753195851122,-460.0,0.00019059,2]
[374078676,1753195851131,-460.0,0.00019059,2]
[374078677,1753195851140,-460.0,0.00019059,2]
[374078678,1753195851149,-689.82,0.00019059,2]
[374078679,1753195851158,-460.0,0.00019059,2]
[374078680,1753195851167,-1283.61,0.00019059,2]
[374078681,1753195851177,-460.0,0.00019059,2]
[374078682,1753195851186,-460.0,0.00019059,2]
[374078683,1753195851196,-460.0,0.00019059,2]
[374078684,1753195851206,-460.0,0.0001906,2]
[374078685,1753195851215,-460.0,0.0001906,2]
[374078687,1753195851225,-460.0,0.0001906,2]
[374078689,1753195851234,-460.0,0.0001906,2]
[374078691,1753195851243,-460.0,0.0001906,2]
[374078693,1753195851253,-458.03268078,0.0001906,2]
[374078695,1753195851262,-460.0,0.0001906,2]
[374078697,1753195851271,-460.0,0.0001906,2]
[374078699,1753195851281,-460.0,0.0001906,2]
[374078701,1753195851290,-460.0,0.0001906,2]
[374078703,1753195851299,-500.13,0.0001906,2]
[374078705,1753195851308,-460.0,0.0001906,2]
[374078707,1753195851317,-460.0,0.0001906,2]
[374078708,1753195851327,-5181.15,0.00019063,2]
[374078710,1753195851336,-460.0,0.00019063,2]
[374078712,1753195851345,-751.42,0.00019063,2]
[374078714,1753195851354,-500.0,0.00019065,2]
[374078716,1753195851364,-1633.52768393,0.00019072,2]
[374078718,1753195851373,-1048.6383488,0.00019078,2]
[374078720,1753195851382,-460.0,0.00019086,2]
[374078722,1753195851392,-1110.86,0.00019086,2]
[374078724,1753195851401,-460.0,0.00019086,2]
[374078726,1753195851411,-810.51,0.00019087,2]
[374078728,1753195851420,-460.0,0.00019087,2]
[374078730,1753195851429,-277.400494,0.00019087,2]
[374078732,1753195851438,-1118.89,0.00019087,2]
[374078734,1753195851447,-788.4,0.00019087,2]
[374078736,1753195851456,-214.25654,0.00019089,2]
[374078738,1753195851465,-302.96970909,0.00019089,2]
[374078740,1753195851474,-151.0,0.000191,2]
[374078742,1753195851483,-500.0,0.00019103,2]
[374078744,1753195851493,-151.0,0.00019111,2]
[374078746,1753195851502,-198.0,0.00019178,2]
[374078748,1753195851511,-535.0,0.00019178,2]
[374078750,1753195851520,-151.0,0.00019178,2]
[374078752,1753195851529,-151.0,0.00019178,2]
[374078753,1753195851539,-151.0,0.00019178,2]
[374078755,1753195851548,-151.0,0.00019178,2]
[374078757,1753195851558,-500.0,0.00019178,2]
[374078759,1753195851567,-151.0,0.00019178,2]
[374078761,1753195851577,-151.0,0.00019178,2]
[374078764,1753195851588,-276.74411777,0.00019178,2]
[374078766,1753195851598,-151.0,0.00019178,2]
[374078767,1753195851607,-151.0,0.00019178,2]
[374078769,1753195851617,-151.0,0.00019178,2]
[374078771,1753195851626,-151.0,0.00019178,2]
[374078772,1753195851635,-151.26714115,0.00019178,2]
[374078773,1753195851645,-151.0,0.00019178,2]
[374078774,1753195851655,-151.0,0.00019178,2]
[374078775,1753195851665,-179.673466,0.00019178,2]
[374078776,1753195851674,-360.0,0.0001926,2]
[374078777,1753195851684,-500.0,0.00019272,2]
[374078778,1753195851694,-500.0,0.00019272,2]
[374078779,1753195851703,-302.96970909,0.00019278,2]
[374078780,1753195851713,-1000.0,0.00019298,2]
[374078782,1753195851724,-500.0,0.000193,2]
[374078784,1753195851733,-151.0,0.00019329,2]
[374078786,1753195851743,-151.0,0.00019329,2]
[374078788,1753195851752,-1917.794687,0.00019329,2]
[374078790,1753195851762,-1917.794687,0.00019329,2]
[374078793,1753195851774,-264.110165,0.00019329,2]
[374078795,1753195851784,-231.286042,0.00019329,2]
[374078796,1753195851794,-264.110165,0.00019329,2]
[374078798,1753195851804,-62397.1325475,0.00019329,2]
[374078819,1753195851997,-3014.98636825,0.00019329,2]
[374078822,1753195852009,-398.04150106,0.00019329,2]
[374078840,1753195852184,-574.09510972,0.00016865,2]
[374078842,1753195852195,-4223.76873477,0.00019329,2]
[374078844,1753195852207,-642.45,0.00019331,2]
[374078845,1753195852216,-460.0,0.00019332,2]
[374078846,1753195852226,-758.16,0.00019332,2]
[374078847,1753195852236,-572.12,0.00019332,2]
[374078848,1753195852245,-460.0,0.00019332,2]
[374078849,1753195852255,-460.0,0.00019332,2]
[374078850,1753195852265,-479.85,0.00019332,2]
[374078851,1753195852274,-460.0,0.00019332,2]
[374078852,1753195852284,-647.2,0.00019333,2]
[374078853,1753195852293,-460.0,0.00019333,2]
[374078854,1753195852303,-534.36135148,0.00019333,2]
[374078855,1753195852313,-460.0,0.00019333,2]
[374078856,1753195852322,-460.0,0.00019333,2]
[374078857,1753195852333,-460.0,0.00019333,2]
[374078858,1753195852343,-460.0,0.00019333,2]
[374078859,1753195852353,-460.0,0.00019333,2]
[374078860,1753195852362,-460.0,0.00019333,2]
[374078861,1753195852371,-460.0,0.00019333,2]
[374078862,1753195852381,-689.82,0.00019333,2]
[374078863,1753195852390,-460.0,0.00019333,2]
[374078864,1753195852400,-1283.61,0.00019333,2]
[374078865,1753195852410,-460.0,0.00019333,2]
[374078866,1753195852419,-460.0,0.00019333,2]
[374078867,1753195852430,-460.0,0.00019333,2]
[374078868,1753195852440,-460.0,0.00019334,2]
[374078869,1753195852536,-461.68150585,0.00019334,2]
[374078870,1753195852546,-460.0,0.00019334,2]
[374078871,1753195852556,-460.0,0.00019334,2]
[374078872,1753195852565,-460.0,0.00019334,2]
[374078873,1753195852575,-498.34,0.00019334,2]
[374078874,1753195852584,-460.0,0.00019334,2]
[374078875,1753195852594,-460.0,0.00019334,2]
[374078876,1753195852603,-460.0,0.00019334,2]
[374078877,1753195852612,-500.13,0.00019334,2]
[374078878,1753195852622,-520.2,0.00019334,2]
[374078879,1753195852631,-460.0,0.00019334,2]
[374078880,1753195852641,-5181.15,0.00019337,2]
[374078881,1753195852650,-460.0,0.00019337,2]
[374078882,1753195852659,-751.42,0.00019337,2]
[374078883,1753195852668,-1110.86,0.0001936,2]
[374078884,1753195852677,-460.0,0.0001936,2]
[374078885,1753195852686,-810.51,0.00019361,2]
[374078886,1753195852695,-172.5,0.00019361,2]
[374078887,1753195852704,-1118.89,0.00019361,2]
[374078888,1753195852714,-500.0,0.00019373,2]
[374078889,1753195852724,-500.0,0.00019373,2]
[374078890,1753195852733,-500.0,0.00019373,2]
[374078891,1753195852742,-603.88329817,0.00019383,2]
[374078892,1753195852755,-1029.64438576,0.00019383,2]
[374078893,1753195852764,-1889.46446551,0.00019384,2]
[374078894,1753195852774,-284.90544308,0.00019444,2]
[374078895,1753195852784,-500.0,0.00019444,2]
[374078896,1753195852793,-295.98570565,0.00019444,2]
[374078897,1753195852805,-204.01429435,0.00019444,2]
[374078898,1753195852815,-500.0,0.00019444,2]
[374078899,1753195852824,-535.0,0.00019452,2]
[374078900,1753195852833,-151.0,0.00019452,2]
[374078901,1753195852842,-292.99665788,0.00019452,2]
[374078902,1753195852851,-151.0,0.00019452,2]
[374078903,1753195852860,-500.0,0.00019452,2]
[374078904,1753195852869,-151.0,0.00019452,2]
[374078905,1753195852878,-151.0,0.00019452,2]
[374078906,1753195852888,-151.0,0.00019452,2]
[374078907,1753195852897,-151.0,0.00019452,2]
[374078908,1753195852907,-151.0,0.00019452,2]
[374078909,1753195852916,-302.96970909,0.00019467,2]
[374078910,1753195852925,-642.45,0.00019605,2]
[374078911,1753195852934,-460.0,0.00019606,2]
[374078912,1753195852945,-258.64415833,0.00019606,2]
[374078913,1753195852957,-499.51584167,0.00019606,2]
[374078914,1753195852966,-572.12,0.00019606,2]
[374078915,1753195852977,-220.02170621,0.00019606,2]
[374078916,1753195852988,-239.97829379,0.00019606,2]
[374078917,1753195852997,-460.0,0.00019606,2]
[374078918,1753195853007,-479.85,0.00019606,2]
[374078919,1753195853017,-421.60809037,0.00019606,2]
[374078920,1753195853030,-647.2,0.00019607,2]
[374078921,1753195853040,-460.0,0.00019607,2]
[374078922,1753195853050,-460.0,0.00019607,2]
[374078923,1753195853059,-279.39442198,0.00019607,2]
[374078924,1753195853084,-460.0,0.00016868,2]
[374078925,1753195853102,-180.60557802,0.00019607,2]
[374078926,1753195853115,-460.0,0.00019607,2]
[374078927,1753195853126,-441.64719461,0.00019607,2]
[374078928,1753195853136,-460.0,0.00019607,2]
[374078929,1753195853146,-460.0,0.00019607,2]
[374078930,1753195853155,-460.0,0.00019607,2]
[374078931,1753195853165,-689.82,0.00019607,2]
[374078932,1753195853176,-460.0,0.00019607,2]
[374078933,1753195853186,-1283.61,0.00019607,2]
[374078934,1753195853196,-460.0,0.00019607,2]
[374078935,1753195853206,-460.0,0.00019607,2]
[374078936,1753195853216,-609.95976621,0.00019607,2]
[374078937,1753195853229,-460.0,0.00019608,2]
[374078938,1753195853239,-460.0,0.00019608,2]
[374078939,1753195853248,-460.0,0.00019608,2]
[374078940,1753195853258,-460.0,0.00019608,2]
[374078941,1753195853268,-460.0,0.00019608,2]
[374078942,1753195853277,-460.0,0.00019608,2]
[374078943,1753195853287,-460.0,0.00019608,2]
[374078944,1753195853297,-500.13,0.00019608,2]
[374078945,1753195853307,-1953.09887396,0.00019611,2]
[374078946,1753195853320,-1658.26786078,0.00019611,2]
[374078947,1753195853332,-1569.78326526,0.00019611,2]
[374078948,1753195853341,-460.0,0.00019611,2]
[374078949,1753195853351,-751.42,0.00019611,2]
[374078950,1753195853361,-1110.86,0.00019634,2]
[374078951,1753195853370,-460.0,0.00019634,2]
[374078952,1753195853380,-810.51,0.00019635,2]
[374078953,1753195853390,-1118.89,0.00019635,2]
[374078954,1753195853399,-302.96970909,0.00019656,2]
[374078955,1753195853409,-3343.58847136,0.0001969,2]
[374078956,1753195853419,-1633.52768393,0.00019693,2]
[374078957,1753195853429,-535.0,0.00019726,2]
[374078958,1753195853438,-500.0,0.00019726,2]
[374078959,1753195853448,-198.0,0.00019726,2]
[374078960,1753195853458,-151.0,0.00019726,2]
[374078961,1753195853467,-151.0,0.00019726,2]
[374078962,1753195853479,-210.60426708,0.00019726,2]
[374078963,1753195853489,-245.0,0.00019726,2]
[374078964,1753195853498,-223.0315306,0.00019762,2]
[374078965,1753195853508,-1048.6383488,0.00019781,2]
[374078966,1753195853518,-460.0,0.00019807,2]
[374078967,1753195853528,-1000.0,0.0001982,2]
[374078968,1753195853537,-500.0,0.0001982,2]
[374078969,1753195853547,-211.77354368,0.00019845,4]
[374078970,1753195853556,-392.58580708,0.00019848,2]
[374078971,1753195853565,-642.45,0.00019879,2]
[374078972,1753195853574,-999.999999,0.0001988,2]
[374078973,1753195853584,-460.0,0.0001988,2]
[374078974,1753195853594,-758.16,0.0001988,2]
[374078975,1753195853604,-572.12,0.0001988,2]
[374078976,1753195853614,-460.0,0.0001988,2]
[374078977,1753195853623,-460.0,0.0001988,2]
[374078978,1753195853633,-479.85,0.0001988,2]
[374078979,1753195853643,-647.2,0.00019881,2]
[374078980,1753195853653,-460.0,0.00019881,2]
[374078981,1753195853663,-460.0,0.00019881,2]
[374078982,1753195853672,-460.0,0.00019881,2]
[374078983,1753195853682,-460.0,0.00019881,2]
[374078984,1753195853692,-460.0,0.00019881,2]
[374078985,1753195853701,-460.0,0.00019881,2]
[374078986,1753195853711,-460.0,0.00019881,2]
[374078987,1753195853723,-689.82,0.00019881,2]
[374078988,1753195853732,-460.0,0.00019881,2]
[374078989,1753195853742,-1283.61,0.00019881,2]
[374078990,1753195853751,-460.0,0.00019881,2]
[374078991,1753195853760,-460.0,0.00019881,2]
[374078992,1753195853770,-460.0,0.00019882,2]
[374078993,1753195853779,-460.0,0.00019882,2]
[374078994,1753195853789,-313.88966242,0.00019882,2]
[374078995,1753195853799,-460.0,0.00019882,2]
[374078996,1753195853809,-460.0,0.00019882,2]
[374078997,1753195853819,-460.0,0.00019882,2]
[374078998,1753195853829,-460.0,0.00019882,2]
[374078999,1753195853840,-500.13,0.00019882,2]
[374079000,1753195853850,-5181.15,0.00019885,2]
[374079001,1753195853860,-460.0,0.00019885,2]
[374079002,1753195853869,-751.42,0.00019885,2]
[374079003,1753195853879,-150.0,0.0001989,2]
[374079004,1753195853889,-1110.86,0.00019908,2]
[374079005,1753195853898,-460.0,0.00019908,2]
[374079006,1753195853907,-810.51,0.00019909,2]
[374079007,1753195853917,-1118.89,0.00019909,2]
[374079008,1753195853927,-1003.76840278,0.00019921,2]
[374079009,1753195853936,-500.0,0.00019921,2]
[374079010,1753195853946,-151.0,0.00019921,2]
[374079011,1753195853956,-151.0,0.00019921,2]
[374079012,1753195853965,-1917.794687,0.00019921,2]
[374079013,1753195853977,-1917.794687,0.00019921,2]
[374079014,1753195853987,-151.0,0.0001993,2]
[374079015,1753195853996,-1000.0,0.00019992,2]
[374079016,1753195854006,-693.2450441,0.00019992,2]
[374079017,1753195854016,-264.110165,0.00019992,2]
[374079018,1753195854030,-264.110165,0.00019992,2]
[374079019,1753195854040,-535.0,0.0002,2]
[374079020,1753195854049,-500.0,0.0002,2]
[374079021,1753195854059,-151.0,0.0002,2]
[374079022,1753195854070,-49151.51011666,0.0002,2]
[374079023,1753195854080,-35850.79696441,0.0002,2]
[374079024,1753195854090,-151.0,0.0002,2]
[374079025,1753195854100,-173.634,0.0002,2]
[374079026,1753195854110,-219.49438361,0.0002,2]
[374079027,1753195854120,-1633.52768393,0.00020003,2]
[374079028,1753195854129,-151.0,0.00020076,2]
[374079029,1753195854242,-1917.794687,0.00020076,2]
[374079030,1753195854252,-1917.794687,0.00020076,2]
[374079031,1753195854262,-151.0,0.00020079,2]
[374079032,1753195854271,-80.66882954,0.00020123,2]
[374079033,1753195854284,-501.08328675,0.00020123,2]
[374079034,1753195854295,-5.24788371,0.00020123,2]
[374079035,1753195854305,-298.56271007,0.00020153,2]
[374079036,1753195854362,-460.0,0.00016867,2]
[374079037,1753195854371,-370.6395,0.00016867,2]
[374079038,1753195854383,-89.3605,0.00016867,2]
[374079039,1753195854392,-460.0,0.00016868,2]
[374079040,1753195854402,-460.0,0.00016868,2]
[374079041,1753195854411,-460.0,0.00017142,2]
[374079042,1753195854422,-343.88728993,0.00020153,2]
[374079043,1753195854431,-460.0,0.00020154,2]
[374079044,1753195854441,-490.44385723,0.00020154,2]
[374079045,1753195854452,-267.71614277,0.00020154,2]
[374079046,1753195854462,-572.12,0.00020154,2]
[374079047,1753195854472,-460.0,0.00020154,2]
[374079048,1753195854482,-563.25279057,0.00020154,2]
[374079049,1753195854492,-479.85,0.00020154,2]
[374079050,1753195854501,-647.2,0.00020155,2]
[374079051,1753195854511,-460.0,0.00020155,2]
[374079052,1753195854521,-460.0,0.00020155,2]
[374079053,1753195854531,-460.0,0.00020155,2]
[374079054,1753195854540,-593.33,0.00020155,2]
[374079055,1753195854550,-388.48105098,0.00020155,2]
[374079056,1753195854560,-460.0,0.00020155,2]
[374079057,1753195854569,-460.0,0.00020155,2]
[374079058,1753195854579,-545.37650557,0.00020155,2]
[374079059,1753195854591,-144.44349443,0.00020155,2]
[374079060,1753195854601,-460.0,0.00020155,2]
[374079061,1753195854611,-64.68485841,0.00020155,2]
[374079062,1753195854623,-602.0,0.00020155,2]
[374079063,1753195854635,-308.4217,0.00020155,2]
[374079064,1753195854647,-308.50344159,0.00020155,2]
[374079065,1753195854656,-175.71480877,0.00020155,2]
[374079066,1753195854884,5280.31446949,0.00016767,2]
[374079067,1753195854907,10000.0,0.00016767,2]
[374079068,1753195854930,10000.0,0.00016767,2]
[374079069,1753195854954,10000.0,0.00016767,2]
[374079070,1753195854979,10000.0,0.00016767,2]
[374079071,1753195855003,10000.0,0.00016767,2]
[374079072,1753195855028,10000.0,0.00016767,2]
[374079073,1753195855051,10000.0,0.00016767,2]
[374079074,1753195855075,10000.0,0.00016767,2]
[374079075,1753195855100,10000.0,0.00016767,2]
[374079076,1753195855123,10000.0,0.00016767,2]
[374079077,1753195855145,10000.0,0.00016767,2]
[374079078,1753195855167,10000.0,0.00016767,2]
[374079079,1753195855191,7821.60487072,0.00016767,2]
[374079080,1753195897482,2178.39512928,0.0001679,2]
[374079081,1753195897507,2821.60487072,0.0001679,2]
[374079082,1753195905637,1245.90134889,0.0001679,2]
[374079083,1753195913559,5000.0,0.0001679,2]
[374079084,1753195913746,495.39,0.00024658,60]
[374079085,1753195922652,932.49378039,0.00016765,2]
[374079086,1753195922682,359.12759119,0.00016765,2]
[374079087,1753195931493,5000.0,0.0001678,2]
[374079088,1753195946802,5000.0,0.0001678,2]
[374079089,1753195951869,428.5741708,0.00016289,2]
[374079090,1753195962346,5000.0,0.0001678,2]
[374079091,1753195977712,5000.0,0.0001678,2]
[374079092,1753195993142,5000.0,0.0001678,2]
[374079093,1753196243187,989.618,0.00024649,60]
[374079094,1753196253325,257.14450248,0.00016289,2]
[374079095,1753196273642,300.23331194,0.0001678,2]
[374079096,1753196302939,240.18664955,0.0001678,2]
[374079097,1753196343303,192.14931964,0.0001678,2]
[374079098,1753196373097,153.71945571,0.0001678,2]
[374079099,1753196375500,157.908199,0.00013699,2]
[374079101,1753196391831,2000.0,0.000167,2]
[374079102,1753196495396,166.0,0.00016438,2]
[374079103,1753196556657,154.28670149,0.00016289,2]
[374079106,1753196721064,150.0,0.00022311,30]
[374079107,1753196811323,150.0,0.00021802,30]
[374079108,1753196900464,150.0,0.0002177,30]
[374079109,1753196903344,153.71945571,0.0001678,2]
[374079110,1753196931185,153.71945571,0.0001678,2]
[374079112,1753196978666,251.23,0.00016208,2]
[374079113,1753196982911,150.0,0.00021794,30]
[374079162,1753197032427,-679.03551762,0.00016789,2]
[374079173,1753197032472,-520.96448238,0.00016789,2]
[374079175,1753197032483,-189.20931764,0.0001679,2]
[374079177,1753197032496,-1322.36225477,0.0001679,2]
[374079179,1753197032507,-300.0,0.0001679,2]
[374079181,1753197032517,-300.0,0.0001679,2]
[374079182,1753197032528,-300.0,0.0001679,2]
[374079184,1753197032537,-300.0,0.0001679,2]
[374079186,1753197032547,-300.0,0.0001679,2]
[374079187,1753197032556,-1947.95436338,0.00016791,2]
[374079188,1753197032566,-460.0,0.00016791,2]
[374079189,1753197032575,-460.0,0.00016791,2]
[374079190,1753197032584,-460.0,0.00016791,2]
[374079191,1753197032593,-460.0,0.00016791,2]
[374079192,1753197032602,-460.0,0.00016791,2]
[374079193,1753197032612,-207.235,0.00016791,2]
[374079194,1753197032622,-460.0,0.00016791,2]
[374079195,1753197032631,-460.0,0.00016791,2]
[374079196,1753197032640,-460.0,0.00016791,2]
[374079197,1753197032649,-886.97,0.00016791,2]
[374079198,1753197032659,-460.0,0.00016791,2]
[374079199,1753197032677,-208.72027163,0.00016791,2]
[374079200,1753197032688,-460.0,0.00016791,2]
[374079201,1753197032698,-279.90126691,0.00016792,2]
[374079202,1753197032707,-460.0,0.00016792,2]
[374079204,1753197032717,-355.30195347,0.00016792,2]
[374079206,1753197032727,-463.80977665,0.00016792,2]
[374079208,1753197032737,-168.03731023,0.00016792,2]
[374079210,1753197032747,-460.0,0.00016792,2]
[374079212,1753197032757,-460.0,0.00016792,2]
[374079214,1753197032766,-381.760019,0.00016792,2]
[374079216,1753197032776,-461.10079098,0.00016792,2]
[374079218,1753197032785,-259.96485132,0.00016792,2]
[374079220,1753197032795,-460.0,0.00016792,2]
[374079222,1753197032804,-460.0,0.00016792,2]
[374079224,1753197032814,-460.73221315,0.00016792,2]
[374079226,1753197032823,-460.0,0.00016792,2]
[374079228,1753197032833,-460.0,0.00016792,2]
[374079230,1753197032842,-460.0,0.00016792,2]
[374079232,1753197032852,-460.0,0.00016792,2]
[374079234,1753197032862,-460.0,0.00016792,2]
[374079236,1753197032872,-460.0,0.00016792,2]
[374079238,1753197032882,-462.57033097,0.00016792,2]
[374079240,1753197032891,-460.0,0.00016792,2]
[374079242,1753197032901,-460.0,0.00016792,2]
[374079244,1753197032910,-460.0,0.00016792,2]
[374079246,1753197032919,-460.0,0.00016792,2]
[374079248,1753197032929,-460.0,0.00016792,2]
[374079250,1753197032942,-460.0,0.00016792,2]
[374079252,1753197032951,-399.24365653,0.00016792,2]
[374079254,1753197032960,-460.0,0.00016792,2]
[374079256,1753197032970,-460.0,0.00016792,2]
[374079258,1753197032979,-460.0,0.00016792,2]
[374079260,1753197032989,-461.69020492,0.00016792,2]
[374079263,1753197033000,-460.0,0.00016792,2]
[374079265,1753197033010,-460.0,0.00016792,2]
[374079267,1753197033021,-460.0,0.00016792,2]
[374079269,1753197033033,-460.0,0.00016792,2]
[374079271,1753197033043,-464.89380412,0.00016792,2]
[374079273,1753197033053,-462.34368805,0.00016792,2]
[374079275,1753197033062,-460.0,0.00016792,2]
[374079276,1753197033072,-460.0,0.00016792,2]